bitfinex-derivatives/quotes_BTCF0:USTF0_20250130
["timestamp","ask_amount","ask_price","bid_price","bid_amount"]
[1738214840494,0.37473105,105370.0,105360.0,0.7415361]
[1738214840890,0.37473105,105370.0,105360.0,0.67340193]
[1738214841583,0.37473105,105370.0,105360.0,0.7415361]
[1738214841990,0.37473105,105370.0,105360.0,0.67340193]
[1738214842396,0.37473105,105370.0,105360.0,0.7415361]
[1738214842891,0.37473105,105370.0,105360.0,0.67340193]
[1738214843096,0.37473105,105370.0,105360.0,0.7415361]
[1738214843894,0.37473105,105370.0,105360.0,0.67340193]
[1738214844084,0.37473105,105370.0,105360.0,0.7415361]
[1738214844895,0.34621904,105370.0,105360.0,0.68289746]
[1738214845497,0.34621904,105370.0,105360.0,0.75103163]
[1738214845889,0.34621904,105370.0,105360.0,0.68289746]
[1738214846091,0.77515321,105370.0,105360.0,0.61476329]
[1738214846289,0.70701904,105370.0,105360.0,0.68289746]
[1738214846793,0.41435321,105370.0,105360.0,0.61476329]
[1738214847002,0.41435321,105370.0,105360.0,0.68289746]
[1738214847389,0.34621904,105370.0,105360.0,0.68289746]
[1738214847890,0.34621904,105370.0,105360.0,0.61476329]
[1738214848195,0.41435321,105370.0,105360.0,0.68289746]
[1738214848499,0.70701904,105370.0,105360.0,0.68289746]
[1738214848990,0.77515321,105370.0,105360.0,0.61476329]
[1738214849190,0.77515321,105370.0,105360.0,0.68289746]
[1738214849399,0.70701904,105370.0,105360.0,0.68289746]
[1738214849600,0.70701904,105370.0,105360.0,0.5128817]
[1738214849901,0.70701904,105370.0,105360.0,0.44474753]
[1738214850101,0.77515321,105370.0,105360.0,0.5128817]
[1738214850502,0.70701904,105370.0,105360.0,0.5128817]
[1738214850894,0.77515321,105370.0,105360.0,0.44474753]
[1738214851195,0.70701904,105370.0,105360.0,0.5128817]
[1738214851899,0.70701904,105370.0,105360.0,0.44474753]
[1738214852094,0.77515321,105370.0,105360.0,0.44474753]
[1738214852500,0.70701904,105370.0,105360.0,0.5128817]
[1738214852693,0.70697904,105370.0,105360.0,0.5128817]
[1738214852894,0.77511321,105370.0,105360.0,0.44474753]
[1738214853493,0.70697904,105370.0,105360.0,0.2779817]
[1738214853698,0.78447904,105370.0,105360.0,0.2779817]
[1738214853902,0.81299105,105370.0,105360.0,0.20984753]
[1738214854091,0.88112522,105370.0,105360.0,0.20984753]
[1738214854495,0.81299105,105370.0,105360.0,0.2779817]
[1738214854907,0.88112522,105370.0,105360.0,0.20984753]
[1738214855105,0.81299105,105370.0,105360.0,0.20984753]
[1738214855490,0.81299105,105370.0,105360.0,0.2779817]
[1738214855896,0.81299105,105370.0,105360.0,0.20984753]
[1738214856104,0.81299105,105370.0,105360.0,0.2779817]
[1738214856705,0.45219105,105370.0,105360.0,0.2779817]
[1738214856906,0.45219105,105370.0,105360.0,0.20984753]
[1738214857102,0.45219105,105370.0,105360.0,0.2779817]
[1738214857304,0.45219105,105370.0,105360.0,0.34611587]
[1738214857600,0.45219105,105370.0,105360.0,0.2779817]
[1738214858603,0.45219105,105370.0,105360.0,0.34611587]
[1738214859008,0.45219105,105370.0,105360.0,0.2779817]
[1738214859518,0.45219105,105370.0,105360.0,0.70691587]
[1738214859803,0.45219105,105370.0,105360.0,0.34611587]
[1738214860013,0.45219105,105370.0,105360.0,0.6387817]
[1738214860404,0.37469105,105370.0,105360.0,0.70691587]
[1738214860904,0.37469105,105370.0,105360.0,0.6387817]
[1738214861607,0.37469105,105370.0,105360.0,0.70691587]
[1738214861909,0.37469105,105370.0,105360.0,0.6387817]
[1738214862499,0.37469105,105370.0,105360.0,0.70691587]
[1738214862995,0.37469105,105370.0,105360.0,0.6387817]
[1738214863409,0.37469105,105370.0,105360.0,0.70691587]
[1738214863609,0.3177168,105370.0,105360.0,1.33529616]
[1738214863800,0.3176768,105370.0,105360.0,1.33529616]
[1738214864000,0.3176768,105370.0,105360.0,1.26716199]
[1738214864410,0.3176768,105370.0,105360.0,1.33529616]
[1738214864910,0.3176768,105370.0,105360.0,1.26716199]
[1738214865411,0.3176768,105370.0,105360.0,1.33529616]
[1738214865909,0.3176768,105370.0,105360.0,1.26716199]
[1738214866509,0.3176768,105370.0,105360.0,1.33529616]
[1738214866900,0.34611687,105370.0,105360.0,1.04149746]
[1738214867510,0.34611687,105370.0,105360.0,1.10963163]
[1738214867803,0.34611687,105370.0,105360.0,1.04149746]
[1738214868511,0.34611687,105370.0,105360.0,1.10963163]
[1738214868901,0.34611687,105370.0,105360.0,1.04149746]
[1738214869504,0.34611687,105370.0,105360.0,1.10963163]
[1738214869803,0.34611687,105370.0,105360.0,0.80879746]
[1738214870007,0.49101687,105370.0,105360.0,0.74066329]
[1738214870213,0.49101687,105370.0,105360.0,0.80879746]
[1738214870908,0.49101687,105370.0,105360.0,0.37036776]
[1738214871311,0.51955105,105370.0,105360.0,0.43850193]
[1738214871703,0.88035105,105370.0,105360.0,0.43850193]
[1738214871908,0.94848522,105370.0,105360.0,0.18053576]
[1738214874414,0.88035105,105370.0,105360.0,0.24866993]
[1738214874610,0.88035105,105370.0,105360.0,0.18053576]
[1738214875112,0.94848522,105370.0,105360.0,0.18053576]
[1738214875914,1.11923856,105370.0,105360.0,0.01052]
[1738214878513,1.05110439,105370.0,105360.0,0.01052]
[1738214879015,1.11923856,105370.0,105360.0,0.01052]
[1738214879409,1.05110439,105370.0,105360.0,0.01052]
[1738214879610,1.11923856,105370.0,105360.0,0.01052]
[1738214880415,1.05110439,105370.0,105360.0,0.01052]
[1738214880918,1.11923856,105370.0,105360.0,0.01052]
[1738214881623,1.05110439,105370.0,105360.0,0.01052]
[1738214881919,1.11923856,105370.0,105360.0,0.01052]
[1738214883222,0.94848522,105370.0,105360.0,0.01052]
[1738214888520,0.88035105,105370.0,105360.0,0.01052]
[1738214888816,0.94848522,105370.0,105360.0,0.01052]
[1738214889017,0.94844522,105370.0,105360.0,0.01052]
[1738214889421,0.84395105,105370.0,105360.0,0.07865417]
[1738214889719,0.88031105,105370.0,105360.0,0.01052]
[1738214889920,0.94844522,105370.0,105360.0,0.01052]
[1738214890518,0.90876994,105370.0,105360.0,0.01052]
[1738214890717,0.97690411,105370.0,105360.0,0.01052]
[1738214891514,0.90876994,105370.0,105360.0,0.01052]
[1738214891812,0.97690411,105370.0,105360.0,0.01052]
[1738214892516,0.90876994,105370.0,105360.0,0.01052]
[1738214892710,0.97690411,105370.0,105360.0,0.01052]
[1738214892914,0.7380166,105370.0,105360.0,0.01052]
[1738214893512,0.7380166,105370.0,105360.0,0.07865417]
[1738214894025,0.80615077,105370.0,105360.0,0.01052]
[1738214894427,0.7380166,105370.0,105360.0,0.07865417]
[1738214894924,0.80615077,105370.0,105360.0,0.01052]
[1738214895625,0.7380166,105370.0,105360.0,0.07865417]
[1738214895821,0.7380166,105370.0,105360.0,0.01052]
[1738214896022,0.80615077,105370.0,105360.0,0.01052]
[1738214896226,0.7380166,105370.0,105360.0,0.07865417]
[1738214896625,0.5930766,105370.0,105360.0,0.26848617]
[1738214896931,0.73527301,105370.0,105360.0,0.26848617]
[1738214897133,0.69895301,105370.0,105360.0,0.49198617]
[1738214897426,0.73527301,105370.0,105360.0,0.49198617]
[1738214898926,0.73527301,105370.0,105360.0,0.423852]
[1738214899229,0.73527301,105370.0,105360.0,0.49198617]
[1738214899916,0.73527301,105370.0,105360.0,0.423852]
[1738214900118,0.73527301,105370.0,105360.0,0.49198617]
[1738214901419,0.81276643,105370.0,105360.0,0.56012034]
[1738214901623,0.26215243,105370.0,105360.0,0.92092034]
[1738214903229,0.26115243,105370.0,105360.0,0.91992034]
[1738214904234,0.26015243,105370.0,105360.0,0.91992034]
[1738214904738,0.26015243,105370.0,105360.0,0.92922051]
[1738214906634,0.26015243,105370.0,105360.0,1.17053769]
[1738214906635,0.20325882,105370.0,105360.0,1.17053769]
[1738214906835,0.20325882,105370.0,105360.0,1.06675281]
[1738214907636,0.20325882,105370.0,105360.0,1.17053769]
[1738214907934,0.20325882,105370.0,105360.0,1.06675281]
[1738214909438,0.20325882,105370.0,105360.0,1.17053769]
[1738214909934,0.20325882,105370.0,105360.0,1.06675281]
[1738214910438,0.20325882,105370.0,105360.0,1.17053769]
[1738214910634,0.0894454,105370.0,105360.0,1.00052193]
[1738214910834,0.0894454,105370.0,105360.0,0.89673705]
[1738214911435,0.0894454,105370.0,105360.0,1.00052193]
[1738214911938,0.0894454,105370.0,105360.0,0.89673705]
[1738214912337,0.0894454,105370.0,105360.0,1.00052193]
[1738214912837,0.0894454,105370.0,105360.0,0.89673705]
[1738214913138,0.0894454,105370.0,105360.0,1.00052193]
[1738214913839,0.0894454,105370.0,105360.0,0.89673705]
[1738214914031,0.0041426,105370.0,105360.0,1.29241734]
[1738214914227,0.0041426,105370.0,105360.0,1.39620222]
[1738214915830,0.0041426,105370.0,105360.0,1.29241734]
[1738214916530,0.0041426,105370.0,105360.0,1.39620222]
[1738214918133,0.0894454,105370.0,105360.0,1.00052193]
[1738214922243,0.0894454,105370.0,105360.0,1.17053769]
[1738214926736,0.0041426,105370.0,105360.0,1.22618646]
[1738214929955,0.0041426,105370.0,105360.0,1.12240158]
[1738214930746,0.0894454,105370.0,105360.0,1.12240158]
[1738214932150,0.0894454,105370.0,105360.0,0.89890158]
[1738214932355,0.2337454,105370.0,105360.0,0.89890158]
[1738214934252,0.2337454,105370.0,105360.0,1.28872112]
[1738214937659,0.2337454,105370.0,105360.0,1.392506]
[1738214937863,0.2337454,105370.0,105360.0,1.28872112]
[1738214938554,0.2337454,105370.0,105360.0,1.32115036]
[1738214942166,0.40445243,105370.0,105360.0,0.93282161]
[1738214943166,0.33185243,105370.0,105360.0,0.93282161]
[1738214944664,0.26015243,105370.0,105360.0,0.93282161]
[1738214944864,0.26015243,105370.0,105360.0,1.13762161]
[1738214946267,0.11795602,105370.0,105360.0,1.13762161]
[1738214950564,0.11795602,105370.0,105360.0,1.20894373]
[1738214950761,0.08957725,105370.0,105360.0,1.5979094]
[1738214950963,0.08957725,105370.0,105360.0,1.49414128]
[1738214951162,0.08957725,105370.0,105360.0,1.5979094]
[1738214951872,0.08957725,105370.0,105360.0,1.49414128]
[1738214952480,0.08957725,105370.0,105360.0,1.5979094]
[1738214952875,0.08957725,105370.0,105360.0,1.49414128]
[1738214953469,0.08957725,105370.0,105360.0,1.5979094]
[1738214953870,0.08957725,105370.0,105360.0,1.49414128]
[1738214954070,0.08957725,105370.0,105360.0,1.28934128]
[1738214954271,0.22707725,105370.0,105360.0,1.28934128]
[1738214954458,0.22707725,105370.0,105360.0,1.3931094]
[1738214954662,0.22707725,105370.0,105360.0,1.28934128]
[1738214955763,0.22707725,105370.0,105360.0,1.3931094]
[1738214955969,0.22707725,105370.0,105360.0,1.28934128]
[1738214956567,0.22707725,105370.0,105360.0,1.3931094]
[1738214956966,0.22707725,105370.0,105360.0,1.28934128]
[1738214957564,0.22707725,105370.0,105360.0,1.3931094]
[1738214958079,0.22707725,105370.0,105360.0,1.28934128]
[1738214958469,0.22707725,105370.0,105360.0,1.3931094]
[1738214958872,0.22707725,105370.0,105360.0,1.28934128]
[1738214959070,0.25545602,105370.0,105360.0,0.90044815]
[1738214959474,0.25545602,105370.0,105360.0,1.00421627]
[1738214959876,0.25545602,105370.0,105360.0,0.90044815]
[1738214960467,0.25545602,105370.0,105360.0,1.00421627]
[1738214960871,0.25545602,105370.0,105360.0,0.90044815]
[1738214961569,0.25545602,105370.0,105360.0,1.00421627]
[1738214962069,0.25545602,105370.0,105360.0,0.90044815]
[1738214962473,0.25545602,105370.0,105360.0,1.00421627]
[1738214962670,0.25545602,105370.0,105360.0,0.90044815]
[1738214963473,0.25545602,105370.0,105360.0,1.00421627]
[1738214963777,0.25545602,105370.0,105360.0,0.90044815]
[1738214966472,0.25545602,105370.0,105360.0,1.00421627]
[1738214966668,0.25545602,105370.0,105360.0,0.90044815]
[1738214967073,0.22707171,105370.0,105360.0,1.28946989]
[1738214967486,0.22707171,105370.0,105360.0,1.39323801]
[1738214967674,0.22707171,105370.0,105360.0,1.28946989]
[1738214969582,0.22707171,105370.0,105360.0,1.39323801]
[1738214969782,0.22707171,105370.0,105360.0,1.28946989]
[1738214970581,0.22707171,105370.0,105360.0,1.39323801]
[1738214970785,0.22707171,105370.0,105360.0,1.28946989]
[1738214971485,0.22707171,105370.0,105360.0,1.39323801]
[1738214971983,0.22707171,105370.0,105360.0,1.28946989]
[1738214972577,0.25545602,105370.0,105360.0,1.39323801]
[1738214972981,0.25545602,105370.0,105360.0,1.28946989]
[1738214973583,0.25545602,105370.0,105360.0,1.39323801]
[1738214973885,0.25545602,105370.0,105360.0,1.28946989]
[1738214974484,0.25545602,105370.0,105360.0,1.39323801]
[1738214974878,0.25545602,105370.0,105360.0,1.28946989]
[1738214975582,0.25545602,105370.0,105360.0,1.39323801]
[1738214975887,0.11795602,105370.0,105360.0,1.39323801]
[1738214976280,0.11795602,105370.0,105360.0,1.49346989]
[1738214976480,0.11795602,105370.0,105360.0,1.59723801]
[1738214976882,0.11795602,105370.0,105360.0,1.49346989]
[1738214977093,0.11795602,105370.0,105360.0,1.10444633]
[1738214977786,0.11795602,105370.0,105360.0,1.20821445]
[1738214978085,0.11795602,105370.0,105360.0,1.10444633]
[1738214980691,0.11795602,105370.0,105360.0,1.20821445]
[1738214980896,0.11795602,105370.0,105360.0,1.10444633]
[1738214982295,0.08957692,105370.0,105360.0,1.15825378]
[1738214982698,0.08957692,105370.0,105360.0,1.2620219]
[1738214982992,0.08957692,105370.0,105360.0,1.15825378]
[1738214983194,0.08957692,105370.0,105360.0,1.2620219]
[1738214983885,0.08957692,105370.0,105360.0,1.15825378]
[1738214985691,0.08957692,105370.0,105360.0,1.2620219]
[1738214985998,0.08957692,105370.0,105360.0,1.15825378]
[1738214986698,0.11795602,105370.0,105360.0,0.90965179]
[1738214990600,0.11795602,105370.0,105360.0,1.13697546]
[1738214993302,0.11795602,105370.0,105360.0,0.93297546]
[1738214993501,0.25085602,105370.0,105360.0,0.93297546]
[1738214993903,0.22248525,105370.0,105360.0,1.65879547]
[1738214996395,0.08958525,105370.0,105360.0,1.65879547]
[1738214998590,0.08958525,105370.0,105360.0,1.73014459]
[1738214998902,0.08958525,105370.0,105360.0,1.62637022]
[1738215001804,0.08958525,105370.0,105360.0,1.73014459]
[1738215002005,0.08958525,105370.0,105360.0,1.62637022]
[1738215002204,0.08944265,105370.0,105360.0,1.73014459]
[1738215002504,0.17075334,105390.0,105360.0,1.92718959]
[1738215002696,0.17075334,105390.0,105380.0,0.911397]
[1738215002896,0.17075334,105390.0,105380.0,1.11894574]
[1738215003097,0.17075334,105390.0,105380.0,1.31244574]
[1738215003904,0.17075334,105390.0,105380.0,1.21567137]
[1738215004297,0.17075334,105390.0,105380.0,1.31944574]
[1738215005202,0.20031753,105400.0,105380.0,1.12964874]
[1738215005410,0.20031753,105400.0,105390.0,0.75812774]
[1738215005603,0.20031753,105400.0,105390.0,0.76764774]
[1738215008009,0.20031753,105400.0,105390.0,0.66387337]
[1738215008209,0.20031753,105400.0,105390.0,0.76764774]
[1738215008503,0.00156633,105400.0,105390.0,0.76764774]
[1738215008808,0.00156633,105400.0,105390.0,0.66387337]
[1738215009005,0.00156633,105400.0,105390.0,0.76764774]
[1738215009607,0.0001426,105400.0,105390.0,0.76764774]
[1738215010902,0.0001426,105400.0,105390.0,0.66387337]
[1738215011102,0.0001426,105400.0,105390.0,0.76764774]
[1738215012012,0.0001426,105400.0,105390.0,0.66387337]
[1738215012515,0.10148,105420.0,105410.0,0.189743]
[1738215012699,0.0656,105420.0,105410.0,0.65431737]
[1738215012907,0.16937437,105420.0,105410.0,0.550543]
[1738215013105,0.0656,105420.0,105410.0,0.550543]
[1738215013506,0.0656,105420.0,105410.0,0.65431737]
[1738215013708,0.0666,105420.0,105410.0,0.65431737]
[1738215014011,0.17137437,105420.0,105410.0,0.551543]
[1738215014204,0.0676,105420.0,105410.0,0.551543]
[1738215014710,0.0676,105420.0,105410.0,0.29451737]
[1738215014911,0.17137437,105420.0,105410.0,0.551543]
[1738215015113,0.0676,105420.0,105410.0,0.190743]
[1738215015507,0.0676,105420.0,105410.0,0.29451737]
[1738215015710,0.17137437,105420.0,105410.0,0.190743]
[1738215016316,0.17137437,105420.0,105410.0,0.2004338]
[1738215016519,0.0676,105420.0,105410.0,0.30420817]
[1738215016709,0.0676,105420.0,105410.0,0.2004338]
[1738215016908,0.17137437,105420.0,105410.0,0.2004338]
[1738215017313,0.36109937,105420.0,105410.0,0.190743]
[1738215017519,0.72189937,105420.0,105410.0,0.190743]
[1738215017710,0.618125,105420.0,105410.0,0.190743]
[1738215017910,0.72189937,105420.0,105410.0,0.190743]
[1738215018519,0.618125,105420.0,105410.0,0.190743]
[1738215018918,0.78829937,105420.0,105410.0,0.190743]
[1738215019618,0.684525,105420.0,105410.0,0.190743]
[1738215019915,0.46543937,105420.0,105410.0,0.190743]
[1738215020319,0.47491937,105420.0,105410.0,0.190743]
[1738215020517,0.371145,105420.0,105410.0,0.29451737]
[1738215020718,0.371145,105420.0,105410.0,0.190743]
[1738215020907,0.83571937,105420.0,105410.0,0.190743]
[1738215021512,0.731945,105420.0,105410.0,0.190743]
[1738215021917,0.54222,105420.0,105410.0,0.190743]
[1738215022217,0.60177,105420.0,105410.0,0.190743]
[1738215022616,0.791495,105420.0,105410.0,0.190743]
[1738215023320,0.799075,105420.0,105410.0,0.190743]
[1738215023513,0.799075,105420.0,105410.0,0.29451737]
[1738215023819,0.799075,105420.0,105410.0,0.190743]
[1738215024020,0.90284937,105420.0,105410.0,0.190743]
[1738215024219,0.799075,105420.0,105410.0,0.190743]
[1738215024516,0.799075,105420.0,105410.0,0.29451737]
[1738215024722,0.799075,105420.0,105410.0,0.001]
[1738215029428,0.90284937,105420.0,105410.0,0.001]
[1738215030921,0.86700937,105420.0,105410.0,0.001]
[1738215031123,0.799035,105420.0,105410.0,0.29451637]
[1738215031320,0.763235,105420.0,105410.0,0.29451637]
[1738215031625,0.798995,105420.0,105410.0,0.29451637]
[1738215031933,0.798995,105420.0,105410.0,0.190742]
[1738215033024,1.11118713,105420.0,105410.0,0.190742]
[1738215034825,1.11118713,105420.0,105410.0,0.001]
[1738215035622,1.2149615,105420.0,105410.0,0.001]
[1738215037122,1.0729512,105420.0,105410.0,0.001]
[1738215037718,0.96917683,105420.0,105410.0,0.001]
[1738215037933,0.97887536,105420.0,105410.0,0.001]
[1738215039334,1.08264973,105420.0,105410.0,0.001]
[1738215041619,0.9124679,105420.0,105410.0,0.001]
[1738215045435,1.22484573,105420.0,105410.0,0.001]
[1738215046532,1.08531136,105420.0,105410.0,0.001]
[1738215046726,1.04573283,105420.0,105410.0,0.29451637]
[1738215046926,1.04573283,105420.0,105410.0,0.190742]
[1738215047527,1.01001283,105420.0,105410.0,0.259442]
[1738215047728,1.04573283,105420.0,105410.0,0.259442]
[1738215048029,1.04573283,105420.0,105410.0,0.36321637]
[1738215049427,0.90353683,105420.0,105410.0,0.36321637]
[1738215050239,0.90353683,105420.0,105410.0,0.259442]
[1738215050838,0.54269683,105420.0,105410.0,0.259442]
[1738215051034,0.54269683,105420.0,105410.0,0.268962]
[1738215051337,0.90349683,105420.0,105410.0,0.268962]
[1738215051525,0.50701683,105420.0,105410.0,0.37273637]
[1738215051731,0.54269683,105420.0,105410.0,0.37273637]
[1738215052925,0.54269683,105420.0,105410.0,0.73353637]
[1738215053131,0.54269683,105420.0,105410.0,0.37273637]
[1738215053532,0.372515,105420.0,105410.0,0.5423622]
[1738215053727,0.336835,105420.0,105410.0,0.9031622]
[1738215053938,0.372515,105420.0,105410.0,0.9031622]
[1738215054138,0.336835,105420.0,105410.0,0.9031622]
[1738215055839,0.14711,105420.0,105410.0,0.9031622]
[1738215057558,0.14711,105420.0,105410.0,0.91271142]
[1738215058338,0.14711,105420.0,105410.0,0.74308559]
[1738215058539,0.14711,105420.0,105410.0,0.96925337]
[1738215061039,0.336835,105420.0,105410.0,0.96925337]
[1738215062745,0.336835,105420.0,105410.0,0.74308559]
[1738215066847,0.336835,105420.0,105410.0,0.9129525]
[1738215068046,0.14711,105420.0,105410.0,0.9129525]
[1738215071553,0.14711,105420.0,105410.0,1.13912028]
[1738215075456,0.0001426,105430.0,105420.0,0.189725]
[1738215075759,0.0001426,105430.0,105420.0,0.88567374]
[1738215076147,0.11374717,105430.0,105420.0,0.88567374]
[1738215076549,0.11474717,105430.0,105420.0,0.88567374]
[1738215076758,0.25055717,105430.0,105420.0,0.78189937]
[1738215079963,0.1369526,105430.0,105420.0,1.17793406]
[1738215081265,0.1369526,105430.0,105420.0,1.05985406]
[1738215081463,0.2674526,105430.0,105420.0,1.05985406]
[1738215082666,0.2674526,105430.0,105420.0,0.95607969]
[1738215083165,0.2674526,105430.0,105420.0,1.05985406]
[1738215084369,0.2674526,105430.0,105420.0,1.52356598]
[1738215084765,0.2674526,105430.0,105420.0,1.16276598]
[1738215085462,0.4571596,105430.0,105420.0,1.16276598]
[1738215087067,0.2674526,105430.0,105420.0,1.52356598]
[1738215088466,0.2674526,105430.0,105420.0,0.88998715]
[1738215090568,0.2674526,105430.0,105420.0,0.92230542]
[1738215091474,0.4571596,105430.0,105420.0,0.92230542]
[1738215091772,0.4571596,105430.0,105420.0,0.8542591]
[1738215092769,0.88600592,105430.0,105420.0,0.23568778]
[1738215092966,0.92148592,105430.0,105420.0,0.23568778]
[1738215093671,0.92148592,105430.0,105420.0,0.42541278]
[1738215096171,0.92148592,105430.0,105420.0,0.199245]
[1738215096172,1.17725002,105430.0,105420.0,0.199245]
[1738215096578,1.1092037,105430.0,105420.0,0.199245]
[1738215097474,1.1092037,105430.0,105420.0,0.00952]
[1738215098074,1.21292083,105430.0,105420.0,0.00952]
[1738215098870,1.09145096,105430.0,105410.0,0.40576369]
[1738215099078,1.09145096,105430.0,105400.0,0.28285232]
[1738215099079,0.189743,105410.0,105400.0,0.28285232]
[1738215099280,0.65426013,105410.0,105400.0,0.28285232]
[1738215099576,0.317643,105410.0,105400.0,0.57633045]
[1738215099769,0.353083,105410.0,105400.0,0.57633045]
[1738215099968,0.317643,105410.0,105400.0,0.93713045]
[1738215100167,0.1279,105410.0,105400.0,0.88106086]
[1738215100367,0.1912,105410.0,105400.0,0.88106086]
[1738215100675,0.384243,105410.0,105400.0,0.77734373]
[1738215101374,0.384243,105410.0,105400.0,0.78634373]
[1738215102175,0.407953,105410.0,105400.0,0.78634373]
[1738215102373,0.407953,105410.0,105400.0,0.78734373]
[1738215104179,0.407953,105410.0,105400.0,0.5607036]
[1738215104970,0.445893,105410.0,105400.0,0.5607036]
[1738215107867,0.453473,105410.0,105400.0,0.57028563]
[1738215110682,0.453473,105410.0,105400.0,0.20948563]
[1738215110978,0.453473,105410.0,105400.0,0.57980563]
[1738215112269,0.814273,105410.0,105400.0,0.21900563]
[1738215112467,0.453473,105410.0,105400.0,0.21900563]
[1738215113172,0.91799013,105410.0,105400.0,0.02924463]
[1738215113783,0.814273,105410.0,105400.0,0.02324463]
[1738215114680,0.814273,105410.0,105400.0,0.02224463]
[1738215114877,0.814273,105410.0,105400.0,0.01924463]
[1738215115280,0.814273,105410.0,105400.0,0.20900563]
[1738215116791,0.92783808,105410.0,105400.0,0.20900563]
[1738215117096,0.92783808,105410.0,105400.0,0.21600563]
[1738215119486,0.56703808,105410.0,105400.0,0.21600563]
[1738215119686,0.92783808,105410.0,105400.0,0.21600563]
[1738215120787,0.56703808,105410.0,105400.0,0.21600563]
[1738215121186,0.92783808,105410.0,105400.0,0.21600563]
[1738215121486,0.56703808,105410.0,105400.0,0.21600563]
[1738215122291,0.92783808,105410.0,105400.0,0.21600563]
[1738215122479,0.56703808,105410.0,105400.0,0.21600563]
[1738215123297,0.92783808,105410.0,105400.0,0.21600563]
[1738215124597,0.92783808,105410.0,105400.0,0.28408317]
[1738215126187,0.99591562,105410.0,105400.0,0.21600563]
[1738215126390,0.92783808,105410.0,105400.0,0.21600563]
[1738215126590,0.99591562,105410.0,105400.0,0.21600563]
[1738215128394,1.06399316,105410.0,105400.0,0.0166626]
[1738215130685,1.03162513,105410.0,105400.0,0.0166626]
[1738215130885,1.17378466,105410.0,105400.0,0.0166626]
[1738215132291,1.20914466,105410.0,105400.0,0.0166626]
[1738215135394,1.09557958,105410.0,105400.0,0.0166626]
[1738215136798,0.63095253,105410.0,105400.0,0.31021065]
[1738215137092,0.53323253,105410.0,105400.0,0.31021065]
[1738215137681,0.53323253,105410.0,105400.0,0.2064236]
[1738215138890,0.47632279,105410.0,105400.0,0.2064236]
[1738215140102,0.47632279,105410.0,105400.0,0.31021065]
[1738215141990,0.51164279,105410.0,105400.0,0.31021065]
[1738215142190,0.54007732,105410.0,105400.0,0.31021065]
[1738215146002,0.50475732,105410.0,105400.0,0.31021065]
[1738215146300,0.54003732,105410.0,105400.0,0.31021065]
[1738215146596,0.426353,105410.0,105400.0,0.31021065]
[1738215146801,0.426353,105410.0,105400.0,0.67101065]
[1738215147010,0.426353,105410.0,105400.0,0.31021065]
[1738215147305,0.426353,105410.0,105400.0,0.2064236]
[1738215147606,0.490653,105410.0,105400.0,0.2064236]
[1738215150607,0.57590605,105410.0,105400.0,0.2064236]
[1738215151404,0.93670605,105410.0,105400.0,0.2064236]
[1738215152304,1.0404931,105410.0,105400.0,0.0166626]
[1738215154506,0.93670605,105410.0,105400.0,0.0166626]
[1738215154710,1.00480041,105410.0,105400.0,0.0166626]
[1738215155400,1.08972919,105410.0,105400.0,0.0166626]
[1738215156706,1.12540088,105410.0,105400.0,0.0166626]
[1738215159299,1.26748387,105410.0,105400.0,0.0166626]
[1738215161415,1.27701622,105410.0,105400.0,0.2064236]
[1738215161709,1.17325017,105410.0,105400.0,0.2064236]
[1738215162302,1.12843782,105410.0,105400.0,0.2064236]
[1738215162503,1.16367782,105410.0,105400.0,0.2064236]
[1738215163411,1.16367782,105410.0,105400.0,0.0166626]
[1738215163412,1.06202204,105410.0,105400.0,0.0166626]
[1738215163715,1.09726204,105410.0,105400.0,0.0166626]
[1738215166415,0.99349599,105410.0,105400.0,0.0166626]
[1738215166612,1.09726204,105410.0,105400.0,0.0166626]
[1738215167214,1.06887341,105410.0,105400.0,0.0166626]
[1738215171016,1.06887341,105410.0,105400.0,0.0071426]
[1738215174414,1.26744387,105410.0,105400.0,0.0071426]
[1738215175017,1.23220387,105410.0,105400.0,0.1969036]
[1738215175312,1.26740387,105410.0,105400.0,0.1969036]
[1738215177411,1.16363782,105410.0,105400.0,0.1969036]
[1738215178612,1.23172764,105410.0,105400.0,0.1969036]
[1738215182218,1.06154581,105410.0,105400.0,0.1969036]
[1738215190740,1.08964465,105410.0,105400.0,0.1969036]
[1738215196332,1.08964465,105410.0,105400.0,0.0071426]
[1738215199547,1.06183098,105410.0,105400.0,0.0071426]
[1738215203939,1.02663098,105410.0,105400.0,0.0071426]
[1738215204133,0.189761,105400.0,105390.0,0.24544274]
[1738215204334,0.74874064,105400.0,105390.0,0.24544274]
[1738215204539,0.68065082,105400.0,105390.0,0.43522174]
[1738215204743,0.68065082,105400.0,105390.0,0.24544274]
[1738215205156,0.68065082,105400.0,105390.0,0.43522174]
[1738215205648,0.81668082,105400.0,105390.0,0.43522174]
[1738215205847,0.81668082,105400.0,105390.0,0.43622174]
[1738215206648,0.88477064,105400.0,105390.0,0.23710222]
[1738215206845,0.88577064,105400.0,105390.0,0.24610222]
[1738215208047,0.88577064,105400.0,105390.0,0.01952]
[1738215208048,1.0281388,105400.0,105390.0,0.01952]
[1738215214844,1.0375367,105400.0,105390.0,0.01952]
[1738215223163,1.10327081,105400.0,105390.0,0.01952]
[1738215223461,1.10327081,105400.0,105390.0,0.08412]
[1738215224761,1.17136063,105400.0,105390.0,0.08412]
[1738215225166,1.10327081,105400.0,105390.0,0.08412]
[1738215225960,0.93308898,105400.0,105390.0,0.08412]
[1738215226353,1.0011788,105400.0,105390.0,0.08412]
[1738215230268,0.93308898,105400.0,105390.0,0.08412]
[1738215230658,1.0011788,105400.0,105390.0,0.08412]
[1738215230963,1.0011788,105400.0,105390.0,0.0746]
[1738215231165,1.0011788,105400.0,105390.0,0.08412]
[1738215233066,1.0011788,105400.0,105390.0,0.01952]
[1738215233365,1.0674788,105400.0,105390.0,0.01952]
[1738215234067,1.0674788,105400.0,105390.0,0.18973639]
[1738215243267,1.09529247,105400.0,105390.0,0.01952]
[1738215251479,1.237642,105400.0,105390.0,0.01952]
[1738215255280,1.09529247,105400.0,105390.0,0.01952]
[1738215261190,1.09529247,105400.0,105390.0,0.01]
[1738215266896,0.92511064,105400.0,105390.0,0.01]
[1738215275495,1.09598763,105400.0,105390.0,0.01]
[1738215279998,0.92511064,105400.0,105390.0,0.01]
[1738215282705,0.73434964,105400.0,105380.0,0.18937122]
[1738215282999,0.25786882,105390.0,105380.0,0.18937122]
[1738215284002,0.25786882,105390.0,105380.0,0.19137122]
[1738215284305,0.36231882,105390.0,105380.0,0.19137122]
[1738215284503,0.39362882,105390.0,105380.0,0.19137122]
[1738215285006,0.39362882,105390.0,105380.0,0.19237122]
[1738215285603,0.39462882,105390.0,105380.0,0.19737122]
[1738215285804,0.39462882,105390.0,105380.0,0.19637122]
[1738215286198,0.39362882,105390.0,105380.0,0.18937122]
[1738215286406,0.39462882,105390.0,105380.0,0.19837122]
[1738215286609,0.39462882,105390.0,105380.0,0.19937122]
[1738215286805,0.39462882,105390.0,105380.0,0.19737122]